[Event "DFMM-LV 2023"]
[Site "Braunfels"]
[Date "2023.06.09"]
[Round "2.6"]
[White "Kosovska, Olena"]
[Black "Trunz, Elena"]
[Result "0-1"]
[Annotator "TA"]
[ECO "A27"]
[WhiteElo "1894"]
[BlackElo "2122"]
[PlyCount "106"]
[EventDate "2023.06.09"]
[EventType "team-tourn"]
[EventCountry "GER"]
[SourceTitle "playchess.com"]
[Source "ChessBase"]
[SourceQuality "1"]
[TimeControl "40/5400+30:1800+30"]

{[%evp 9,106,-10,-6,-26,0,-8,-20,-33,4,4,4,0,20,12,32,3,24,0,3,-28,-29,-37,-16,-25,-20,-90,-64,-60,-74,-67,-37,-39,-47,-57,-39,-49,-35,-41,-31,-43,8,-21,0,0,0,0,0,-99,-44,-230,-44,-49,-60,-60,0,0,0,-95,-89,-87,-92,-90,-92,-100,-87,-1855,-1750,-1851,-1542,-5393,-4793,-29968,-29969,-29974,-29975,-29975,-29977,-29977,-29978,-29974,-29972,-29978,-29979,-29981,-29982,-29983,-29984,-29984,-29985,-29984,-29982,-29982,-29982,-29983,-29983,-29984,-29984,-29984,-29985]} 1. c4 {[%emt 0:00:04]} e5 {[%emt 0:01:13]} 2. Nc3 {[%emt 0:00:09]} Nc6 {[%emt 0:00:08]} 3. Nf3 {[%emt 0:00:41]} f5 {[%emt 0:00:37]} 4. e4 {[%emt 0:04:53]} Bc5 {[%emt 0:04:59]} 5. exf5 {[%emt 0:06:48]} d6 {[%emt 0:01:14]} 6. Bd3 {[%emt 0:05:12] A27: English Opening: Three Knights Variation.} Nh6 {[%emt 0:06:23][%cal Bg8h6,Bh6f7,Bf7g5,Bg5e4][%mdl 32] [#]} 7. f6 $146 {[%emt 0:04:42]} ({Predecessor:} 7. Be4 Nxf5 8. O-O O-O 9. d3 Ncd4 10. Nxd4 Bxd4 11. Ne2 Bb6 12. Ng3 c6 13. Bxf5 Bxf5 {½-½ Anastasian,A (2588)-Nikolic,P (2652) FIDE-Wch k.o. 2001 (3.1)}) 7... Qxf6 {[%emt 0:00:33]} 8. Ne4 {[%emt 0:01:38] The position is equal.} Qe7 {[%emt 0:01:07]} 9. Nxc5 {[%emt 0:02:39]} dxc5 {[%emt 0:00:18]} 10. Be4 {[%emt 0:00:57]} Bd7 {[%emt 0:03:06]} (10... Bf5 $5 {[%cal Rf5e4]} 11. Bxc6+ bxc6 $11) 11. d3 {[%emt 0:00:31]} Nf7 {[%emt 0:01:15]} 12. Bd2 {[%emt 0:02:44]} O-O-O {[%emt 0:01:58]} 13. a3 {[%emt 0:00:24]} g5 {[%emt 0:02:33][%cal Bg7g5,Bg5g4][%mdl 32] Strongly threatening ...g4.} 14. Bc3 {[%emt 0:02:00]} g4 {[%emt 0:06:16]} 15. Nd2 {[%emt 0:04:50][%cal Ob2b4]} h5 {[%emt 0:02:06]} 16. b4 {[%emt 0:04:52]} Ng5 {[%emt 0:17:57]} 17. bxc5 {[%emt 0:02:29]} (17. O-O $11 {remains equal.}) 17... Nxe4 {[%emt 0:10:10]} (17... h4 {keeps more tension.} 18. Qe2 Qxc5 19. O-O g3) 18. Nxe4 {[%emt 0:02:12]} Bf5 {[%emt 0:00:18] [#] aiming for ...Bxe4.} 19. Qe2 {[%emt 0:02:53]} Bxe4 {[%emt 0:01:10]} 20. Qxe4 {[%emt 0:00:23]} Qxc5 {[%emt 0:03:49]} 21. O-O {[%emt 0:01:24]} Qd6 {[%emt 0:02:15]} 22. Rfd1 {[%emt 0:01:42]} Rd7 {[%emt 0:03:38]} 23. Rab1 {[%emt 0:07:26][%cal Od3d4]} Rf7 {[%emt 0:05:36]} 24. Rb5 {[%emt 0:03:35][%cal Rc3e5]} Qf6 {[%emt 0:06:28]} ({Black should play} 24... Qxa3 $15 25. Bd2 (25. Bxe5 Re8 $15) 25... Rd8) 25. Rd2 {[%emt 0:06:23][%cal Rc3e5]} (25. Bxe5 $2 Qxf2+ 26. Kh1 Qf1+ 27. Rxf1 Rxf1#) 25... Re7 {[%emt 0:01:07]} 26. Rdb2 {[%emt 0:02:22]} b6 {[%emt 0:01:16]} 27. a4 {[%emt 0:00:35]} Qf4 {[%emt 0:03:04]} 28. Qe1 {[%emt 0:20:52]} (28. Qxc6 $2 Qc1+) (28. Qxf4 $11 exf4 29. Kf1 (29. Bxh8 $2 Re1#)) 28... h4 {[%emt 0:05:42] Black is more active.} (28... Rhe8 $17 29. Qe4 Rd8) 29. g3 $2 {[%emt 0:03:03]} (29. Re2 $15) 29... hxg3 $2 {[%emt 0:00:44]} (29... Qf3 $19 {...Nd4 is the strong threat.} 30. Qf1 (30. Qe2 $2 Nd4 $19) 30... Rd7) 30. fxg3 $15 {[%emt 0:00:05]} Qf3 {[%emt 0:05:37]} 31. Qe2 {[%emt 0:00:25]} Qxe2 {[%emt 0:02:35]} (31... Rf8 $15 32. Bb4 Nxb4 33. R5xb4 Rd7) 32. Rxe2 $11 {[%emt 0:00:03]} Rd8 {[%emt 0:00:07]} 33. Re3 {[%emt 0:03:44]} (33. Bxe5 $2 a6 34. Rb1 Rxe5 $19) (33. Rd5 $11) 33... Red7 $17 {[%emt 0:00:18] Black converts the advantage convincingly.} 34. Bxe5 {[%emt 0:01:11]} Rxd3 {[%emt 0:00:55]} 35. Rxd3 {[%emt 0:02:02]} Rxd3 {[%emt 0:00:06][%mdl 4096] Endgame KRB-KRN} 36. Bf4 {[%emt 0:00:22] [#]} Nd4 $1 {[%emt 0:00:28]} 37. Rg5 {[%emt 0:01:08][%mdl 8192]} (37. Rh5 $17) 37... Nf3+ $19 {[%emt 0:00:07]} 38. Kg2 {[%emt 0:00:27]} Nxg5 {[%emt 0:00:06]} 39. Bxg5 {[%emt 0:00:03] KR-KB} Rc3 {[%emt 0:00:30]} 40. h4 {[%emt 0:01:17]} gxh3+ {[%emt 0:00:05] Black mates.} 41. Kxh3 {[%emt 0:30:06]} a5 {[%emt 0:32:05]} 42. Bf6 {[%emt 0:00:41]} Rxc4 {[%emt 0:00:51]} 43. g4 {[%emt 0:00:05]} Kd7 {[%emt 0:00:00]} 44. g5 {[%emt 0:00:00]} Rxa4 {[%emt 0:00:00]} 45. g6 {[%emt 0:00:00]} Ke6 {[%emt 0:00:00]} 46. Be5 {[%emt 0:00:00]} Rc4 {[%emt 0:00:00]} ({Worse is} 46... Kxe5 47. g7 $11) 47. g7 {[%emt 0:00:00]} Kf7 {[%emt 0:00:00]} ({Weaker is} 47... Kxe5 48. g8=Q (48. g8=B {gets mated.} b5 49. Bh7 a4 50. Bb1 b4 51. Bg6 b3 52. Bf7 Rc3+ 53. Kh4 a3 54. Bh5 a2 55. Kg5 Rg3+ 56. Bg4 a1=Q 57. Kh5 Qh1+ {[%mdl 64] Deflection} 58. Kg6 Rxg4+ 59. Kf7 Qh7+ 60. Kf8 Rg8#) 48... Kd4 49. Qg7+ Kd3 50. Kg3 $11) 48. Kg3 {[%emt 0:00:00]} a4 {[%emt 0:00:00][%cal Ba5a4,Ba4a3,Ba3a2][%mdl 32]} 49. Kf3 {[%emt 0:00:00]} b5 {[%emt 0:00:00]} 50. Ke3 {[%emt 0:00:00]} a3 {[%emt 0:00:00]} 51. Kd3 {[%emt 0:00:00]} a2 {[%emt 0:00:00]} 52. Kd2 {[%emt 0:00:00]} Rg4 {[%emt 0:00:00]} 53. Kc2 {[%emt 0:00:00]} Rg1 {[%emt 0:00:00] Weighted Error Value: White=0.55/Black=0.17 (very precise)} 0-1

[Event "DFMM-LV 2023"]
[Site "Braunfels"]
[Date "2023.06.09"]
[Round "2.7"]
[White "Sereda, Yaroslava"]
[Black "Lowke, Kathrin"]
[Result "0-1"]
[Annotator "TA"]
[ECO "B38"]
[WhiteElo "1913"]
[BlackElo "1848"]
[PlyCount "122"]
[EventDate "2023.06.09"]
[EventType "team-tourn"]
[EventCountry "GER"]
[SourceTitle "playchess.com"]
[Source "ChessBase"]
[SourceQuality "1"]
[TimeControl "40/5400+30:1800+30"]

{[%evp 19,122,41,77,77,91,92,99,93,111,101,122,100,166,154,195,195,185,215,199,166,175,167,179,179,322,324,335,318,302,306,413,377,362,196,166,0,181,130,212,177,162,0,0,0,0,0,0,0,0,0,0,-32,-32,-57,-54,-70,0,-30,0,-117,-2,-120,-113,-113,-113,-118,-109,-141,-140,-135,-137,-429,-14,-14,0,-1252,-1193,-29973,8,8,8,8,8,0,0,-29985,-29986,-29985,-29954,-29962,-29967,-29965,-29968,-29965,-29968,-29978,-29978,-29979,-29980,-29981,-29982,-29982,-29983,-29982,-29984]} 1. e4 {[%emt 0:00:03]} c5 {[%emt 0:00:06]} 2. Nf3 {[%emt 0:00:08]} Nc6 {[%emt 0:00:05]} 3. d4 {[%emt 0:00:16]} cxd4 {[%emt 0:00:05]} 4. Nxd4 {[%emt 0:00:05]} g6 {[%emt 0:00:07]} 5. c4 {[%emt 0:03:49]} Bg7 {[%emt 0:00:32]} 6. Be3 {[%emt 0:00:17]} Nf6 {[%emt 0:00:26]} 7. Nc3 {[%emt 0:01:09]} O-O {[%emt 0:01:53]} 8. Be2 {[%emt 0:03:05]} d6 {[%emt 0:00:58]} 9. O-O {[%emt 0:10:02]} Bd7 {[%emt 0:06:01]} 10. Nc2 {[%emt 0:13:08] 10.h3 is setting a new trend.} Qc8 {[%emt 0:04:46]} 11. f3 {[%emt 0:04:23] B38: Sicilian: Maroczy Bind with 5...Bg7 and 7...0-0.} Ne5 {[%emt 0:02:34]} 12. b3 {[%emt 0:05:50]} Bc6 {[%emt 0:03:30]} 13. Rc1 {[%emt 0:04:38] White is better.} a5 {[%emt 0:03:31] [#]} 14. Qd2 $146 {[%emt 0:13:13]} ({Predecessor:} 14. Nd4 Bd7 15. Ndb5 Bc6 16. Nd5 Bxd5 17. cxd5 Qd8 18. Rc7 Qb8 19. f4 Ned7 20. Qd3 {1-0 Rychagov,M (2395)-Pesola,J (2032) Heart of Finland op 15th 2005 (1)}) 14... h5 {[%emt 0:14:21]} 15. Nd4 {[%emt 0:03:53]} b6 {[%emt 0:16:36]} (15... Ned7 $16) 16. Nd5 $18 {[%emt 0:05:33]} Bxd5 {[%emt 0:00:52]} 17. cxd5 {[%emt 0:00:59]} (17. exd5 $6 Ned7 18. h3 Re8 $16) 17... Qb7 {[%emt 0:01:02]} 18. Bb5 {[%emt 0:07:24] Black is weak on the light squares} Rac8 {[%emt 0:02:24]} 19. Qf2 {[%emt 0:07:54]} Nfd7 {[%emt 0:02:02]} 20. a3 {[%emt 0:05:45]} Nc5 {[%emt 0:00:35]} 21. Qe2 {[%emt 0:02:39] Wards off Ned3. b4 would be deadly.} Rc7 {[%emt 0:11:30]} (21... a4 {was worth a try.}) 22. b4 {[%emt 0:01:34]} Ncd7 {[%emt 0:00:45]} 23. Nc6 {[%emt 0:02:25]} Nb8 {[%emt 0:01:22] Repels Ba6} 24. bxa5 {[%emt 0:00:46]} Nexc6 {[%emt 0:00:48]} 25. dxc6 {[%emt 0:00:52]} Nxc6 {[%emt 0:01:14]} 26. Ba6 {[%emt 0:02:26] A strong pair of Bishops.} (26. axb6 Nd4 27. Rxc7 Nxe2+ 28. Bxe2 Qb8 $18) (26. Bxb6 Bd4+ 27. Kh1 Bxb6 28. Bxc6 (28. axb6 Qxb6 29. Bxc6 Rxc6 $11) 28... Rxc6 $11) (26. Qc4 $142 bxa5 27. Bxc6) 26... Qb8 {[%emt 0:04:55]} (26... Nd4 $2 27. Qd3 Qa7 28. Rxc7 (28. Bxd4 Rxc1 29. Rxc1 Bxd4+ 30. Qxd4 Qxa6 $16) 28... Qxc7 29. Bxd4 $18) 27. Rb1 $2 {[%emt 0:00:50]} (27. Bxb6 $6 Bd4+ 28. Bxd4 Nxd4 $11) ({White should try} 27. axb6 $18 Nd4 28. bxc7 Nxe2+ 29. Kf2 (29. Bxe2 Qb3 $14)) 27... Nd4 $2 {[%emt 0:02:25]} (27... Nxa5 $11 28. Bxb6 (28. Rxb6 Qe8 $11) 28... Rc6) 28. Qd1 {[%emt 0:00:50]} (28. Qd2 $18 Ne6 29. Bxb6 (29. Rxb6 Qd8 $16) (29. axb6 Rc3 $16)) 28... Ra7 {[%emt 0:04:03]} (28... Ne6 $16 {keeps fighting.}) 29. Rxb6 {[%emt 0:00:26]} Qa8 {[%emt 0:00:05]} 30. Bxd4 {[%emt 0:00:25]} (30. Bc4 $1 $18 {[%cal Rc4d5] Hoping for Bd5.} Qc8 31. Qd3) 30... Bxd4+ $11 {[%emt 0:00:42]} 31. Qxd4 {[%emt 0:00:01]} Rxa6 {[%emt 0:00:07]} 32. Rxa6 {[%emt 0:01:03]} Qxa6 $18 {[%emt 0:00:03][%mdl 4096] Endgame KQR-KQR} 33. Qb6 {[%emt 0:00:33]} Ra8 {[%emt 0:00:24]} 34. Rc1 {[%emt 0:00:29]} Qxa5 {[%emt 0:01:25]} 35. Rc8+ {[%emt 0:00:29][%mdl 64] Deflection} Kg7 {[%emt 0:00:19][%cal Ra5e1]} 36. Qb2+ {[%emt 0:00:24]} f6 {[%emt 0:00:07][%cal Ra5e1]} 37. Rc3 {[%emt 0:00:34]} Qa4 {[%emt 0:01:29]} (37... Qe5 $15 38. Qc1 Ra5) 38. Rb3 {[%emt 0:00:34]} (38. Rc7 $5 {[%cal Rc7e7]} Kf8 39. Qc1 $11) 38... Qa5 {[%emt 0:00:28][%cal Ra5e1]} 39. g3 {[%emt 0:00:28]} (39. Rc3 $11 {remains equal.}) 39... Qe1+ $17 {[%emt 0:02:07]} 40. Kg2 {[%emt 0:00:08]} Rc8 {[%emt 0:00:31]} 41. Qf2 {[%emt 0:19:58]} Qd1 {[%emt 0:01:13]} 42. Rb2 {[%emt 0:00:43]} Rc1 {[%emt 0:00:30] Black is more active.} 43. Qe2 {[%emt 0:07:10]} Qh1+ {[%emt 0:00:52]} 44. Kh3 {[%emt 0:00:17]} Rc3 {[%emt 0:01:11][%csl LRa3,LRf3]} 45. Rb7 $2 {[%emt 0:03:08][%mdl 8192]} (45. Qg2 $17 Qd1 46. Qe2 (46. Rb7 $2 Rc2 $19) 46... Qxe2 47. Rxe2) 45... Rxf3 $2 {[%emt 0:04:15]} (45... g5 $19 46. e5 (46. Rxe7+ $2 Kf8 $19) 46... dxe5 47. Rxe7+ Kh6) 46. Rxe7+ $11 {[%emt 0:00:31]} Kh6 {[%emt 0:00:03] Threatens to win with ...g5.} 47. a4 $2 {[%emt 0:02:04][%mdl 8192] [#]} (47. Re8 $11) 47... g5 $1 $19 {[%emt 0:00:35]} (47... Qf1+ 48. Qxf1 Rxf1 49. Rd7 $11) 48. Re6 {[%emt 0:00:34]} h4 $2 {[%emt 0:00:27]} (48... Qg1 {mates} 49. Qxf3 g4+ {[%mdl 64] Deflection} 50. Qxg4 Qf1+ 51. Kh4 hxg4 52. Kxg4 Qe2+ 53. Kf4 Kh5 54. g4+ Qxg4+ 55. Ke3 Qxe6 56. a5 d5 57. a6 Qxe4+ 58. Kd2 d4 59. a7 Qe3+ 60. Kc2 d3+ {[%mdl 64] Discovered Attack} 61. Kb2 Qd4+ 62. Ka3 Qxa7+ 63. Kb2 Qd4+ 64. Kc1 d2+ 65. Kd1 f5 66. h4 Kxh4 67. Ke2 d1=Q#) 49. Kg4 $1 $11 {[%emt 0:00:17]} Rf1 $132 {[%emt 0:03:18][%mdl 2048] Black is not keeping still} 50. Qe3 {[%emt 0:00:40]} (50. gxh4 Rf4+ 51. Kh3 Rxh4+ 52. Kg3 Qg1+ 53. Qg2 Rg4+ 54. Kf3 Rxg2 55. e5 d5 56. Rxf6+ Kh5) (50. Rxd6 $2 hxg3 51. Qe3 Rf4+ 52. Kxg3 Rf1 $19) 50... Kg7 {[%emt 0:03:33] Chess con chili.} 51. Rxd6 {[%emt 0:00:33] Threatening mate with e5.} (51. gxh4 Qxh2 52. hxg5 Qg2+ 53. Qg3 Qe2+ 54. Kh4 Rh1+) 51... Qxh2 {[%emt 0:01:21] ( -> ...hxg3)} (51... Re1 $5 52. Qa7+ $8 (52. Rd7+ $2 Kg6 $19) 52... Kg6 53. Rxf6+ {[%mdl 64] Decoy} (53. gxh4 $2 Qg2#) (53. Qf2 {is a self mate.} Qxe4+) 53... Kxf6 54. Qd4+ Ke7 55. Qg7+ Ke6 56. Qg8+ Kd6 57. Qd5+ Ke7 58. Qb7+ (58. Kxg5 $2 {too greedy.} Qxe4 59. Qc5+ Kf7 $19) (58. Qxg5+ Kd7 $11) 58... Kf8 59. Qc8+ Kg7 60. Qd7+ Kh6 61. Qe6+ Kh7 62. Qf7+ Kh8 63. Qh5+ Kg7 64. Qxg5+ Kf8 65. Qf6+ (65. Kxh4 Qxh2+ 66. Kg4 Qe2+ 67. Kf5 Qxe4+ 68. Kf6 Qe6#) 65... Kg8 66. Qg6+ Kf8 67. Qf5+ (67. gxh4 Rxe4+) 67... Kg7 68. Qe5+ Kf8 69. Qf6+ (69. Kxh4 Rxe4+) 69... Kg8 70. Qg5+ Kf8 71. Qd8+ (71. Kxh4 Qxh2+ 72. Kg4 Qe2+ 73. Kf5 Qxe4+ 74. Kf6 Qe6#) 71... Kf7 72. Qd7+ Kf8 73. Qf5+ (73. Kxh4 Qxh2+ 74. Kg4 Rxe4+ 75. Kf5 Qh3+ {[%mdl 64] Skewer} 76. Kxe4 Qxd7 77. a5 Qa4+ 78. Kf3 Qxa5 79. Ke4 Qc3 80. g4 Kg7 81. g5 Qc4+ 82. Kf3 Kg6 83. Ke3 Kxg5 84. Kf3 Kh4 85. Kf2 Qe4 86. Kg1 Qe2 87. Kh1 Kg3 88. Kg1 Qg2#) 73... Ke7 74. Qe5+ (74. Kxh4 $2 Qxh2+ 75. Kg4 Qe2+ 76. Kg5 Qxe4 $19) 74... Kf8 75. Qf6+ $11 (75. Kxh4 Rxe4+)) 52. Rd7+ $2 {[%emt 0:00:29][%mdl 8192]} (52. e5 $11 Qxg3+ 53. Qxg3 hxg3 54. Kxg3) 52... Kg6 {[%emt 0:00:15] Black mates.} 53. Rd2 {[%emt 0:00:32]} Qh1 {[%emt 0:02:34]} 54. Rf2 {[%emt 0:00:30]} Rxf2 {[%emt 0:01:52][%mdl 64] Deflection} 55. Qxf2 {[%emt 0:00:05]} Qxe4+ {[%emt 0:00:04]} 56. Kh3 {[%emt 0:00:15]} Qxa4 {[%emt 0:00:39]} 57. gxh4 {[%emt 0:00:12]} Qxh4+ {[%emt 0:02:43]} 58. Qxh4 {[%emt 0:00:51]} gxh4 {[%emt 0:00:07]} 59. Kxh4 {[%emt 0:00:40] KP-K} Kf5 {[%emt 0:00:05][%cal Bg6f5,Bf5e4,Be4f4][%mdl 32]} 60. Kg3 {[%emt 0:00:39] [#]} Ke4 $1 {[%emt 0:00:28]} 61. Kf2 {[%emt 0:00:38]} Kf4 {[%emt 0:00:10] What a bad dream for White.   Weighted Error Value: White=0.66/Black=0.41} 0-1

[Event "DFMM-LV 2023"]
[Site "Braunfels"]
[Date "2023.06.09"]
[Round "2.8"]
[White "Gottschall, Ina"]
[Black "Moeller, Lisa-Marie"]
[Result "0-1"]
[Annotator "NA RC COMBH"]
[ECO "A00"]
[WhiteElo "1673"]
[BlackElo "1897"]
[PlyCount "86"]
[EventDate "2023.06.09"]
[EventType "team-tourn"]
[EventCountry "GER"]
[SourceTitle "playchess.com"]
[Source "ChessBase"]
[SourceQuality "1"]
[TimeControl "40/5400+30:1800+30"]

1. g3 {[%emt 0:00:02]} c5 {[%emt 0:00:07]} 2. Bg2 {[%emt 0:00:08]} Nc6 {[%emt 0:01:19]} 3. d3 {[%emt 0:01:43]} g6 {[%emt 0:00:22]} 4. Nf3 {[%emt 0:01:27]} Bg7 {[%emt 0:00:14]} 5. c4 {[%emt 0:00:46]} Nf6 {[%emt 0:03:14]} 6. O-O {[%emt 0:01:58]} O-O {[%emt 0:01:18]} 7. Be3 {[%emt 0:01:13]} Ng4 {[%emt 0:06:10]} 8. Nc3 {[%emt 0:03:42]} Nxe3 {[%emt 0:01:55]} 9. fxe3 {[%emt 0:00:08]} Bh6 {[%emt 0:03:18]} 10. Qd2 {[%emt 0:07:00]} d6 {[%emt 0:03:48]} 11. Nd1 {[%emt 0:01:03]} Be6 {[%emt 0:06:22]} 12. Qc3 {[%emt 0:04:31]} Rc8 {[%emt 0:07:35]} 13. d4 {[%emt 0:11:18]} cxd4 {[%emt 0:06:18]} 14. exd4 {[%emt 0:01:40]} Na5 {[%emt 0:02:05]} 15. b3 {[%emt 0:04:09]} b5 {[%emt 0:02:50]} 16. d5 {[%emt 0:06:25]} Bxd5 {[%emt 0:03:20]} 17. Qd3 {[%emt 0:06:14]} Bxf3 {[%emt 0:02:28]} 18. Bxf3 {[%emt 0:10:12]} bxc4 {[%emt 0:01:42]} 19. bxc4 {[%emt 0:07:18]} Nxc4 {[%emt 0:02:22]} 20. Bd5 {[%emt 0:12:35]} Qb6+ {[%emt 0:12:46]} 21. Kh1 {[%emt 0:01:52]} Ne5 {[%emt 0:04:49]} 22. Qe4 {[%emt 0:02:08]} e6 {[%emt 0:03:08]} 23. Bb3 {[%emt 0:01:10]} Qc6 {[%emt 0:01:31]} 24. Qxc6 {[%emt 0:00:35]} Rxc6 {[%emt 0:00:29]} 25. Nb2 {[%emt 0:01:41]} Rfc8 {[%emt 0:01:33]} 26. e4 {[%emt 0:04:01]} Rc1 {[%emt 0:08:07]} 27. Raxc1 {[%emt 0:01:38]} Rxc1 {[%emt 0:00:07]} 28. Rxc1 {[%emt 0:00:16]} Bxc1 {[%emt 0:00:05]} 29. Nd1 {[%emt 0:00:33]} Bd2 {[%emt 0:04:23]} 30. Kg2 {[%emt 0:00:50]} Nd3 {[%emt 0:03:11]} 31. Kf3 {[%emt 0:02:46]} Nc5 {[%emt 0:00:37]} 32. Bc4 {[%emt 0:00:35]} Kg7 {[%emt 0:01:04]} 33. Nf2 {[%emt 0:00:54]} h5 {[%emt 0:00:48]} 34. h4 {[%emt 0:00:23]} Kf6 {[%emt 0:01:07]} 35. g4 {[%emt 0:00:46]} Be1 {[%emt 0:02:07]} 36. gxh5 {[%emt 0:02:34]} Bxf2 {[%emt 0:02:55]} 37. Kxf2 {[%emt 0:01:14]} gxh5 {[%emt 0:00:22]} 38. Ke3 {[%emt 0:00:21]} Ke5 {[%emt 0:01:56]} 39. Be2 {[%emt 0:00:15]} Nxe4 {[%emt 0:00:07]} 40. Bxh5 {[%emt 0:00:05]} f5 {[%emt 0:01:41]} 41. Bg6 {[%emt 0:32:18]} Kf6 {[%emt 0:02:20]} 42. h5 {[%emt 0:00:00]} Kg5 {[%emt 0:02:32]} 43. Bf7 $19 {[%emt 0:00:00]} e5 {[%emt 0:27:28]} 0-1

[Event "DFMM-LV 2023"]
[Site "Braunfels"]
[Date "2023.06.09"]
[Round "2.9"]
[White "Koehler, Inken"]
[Black "Li, Zhuoling"]
[Result "1/2-1/2"]
[Annotator "TA"]
[ECO "A34"]
[WhiteElo "2008"]
[BlackElo "2216"]
[PlyCount "95"]
[EventDate "2023.06.09"]
[EventType "team-tourn"]
[EventCountry "GER"]
[SourceTitle "playchess.com"]
[Source "ChessBase"]
[SourceQuality "1"]
[TimeControl "40/5400+30:1800+30"]

{[%evp 12,95,22,0,14,-20,-15,-58,-23,-53,-28,-33,-24,-39,-45,-30,-43,-56,-52,-83,-83,-94,-109,-110,-29,-24,-35,-59,-55,-227,-213,-189,-206,-460,-455,-472,-463,-428,-306,-285,-219,-197,-178,-260,-270,-260,-257,-250,-246,-257,-260,-240,-251,-202,0,0,0,0,0,0,0,0,0,0,0,0,0,0,0,0,0,0,0,0,0,0,8,12,15,0,0,1,35,41,42,0]} 1. c4 {[%emt 0:00:04]} Nf6 {[%emt 0:00:06][%cal Bg8f6,Bf6d5,Bd5c7,Bc7e6][%mdl 32]} 2. Nc3 {[%emt 0:00:07]} d5 {[%emt 0:00:07]} 3. cxd5 {[%emt 0:00:05]} Nxd5 {[%emt 0:00:04]} 4. g3 {[%emt 0:00:06]} c5 {[%emt 0:00:22]} 5. Bg2 {[%emt 0:00:21]} Nc7 {[%emt 0:00:06]} 6. d3 {[%emt 0:00:44]} e5 {[%emt 0:01:18]} 7. Qb3 {[%emt 0:06:05]} Nc6 {[%emt 0:03:30] A34: Symmetrical English: 2 Nc3, lines with ...d5.} 8. Nf3 {[%emt 0:02:16]} Be7 {[%emt 0:00:54]} 9. Ne4 {[%emt 0:12:53]} Ne6 {[%emt 0:03:35] [#] Black is slightly better.} 10. Be3 $146 {[%emt 0:06:43]} ({Predecessor:} 10. Qc3 f5 11. Ned2 Bf6 12. Qb3 O-O 13. O-O Kh8 14. Nc4 Rb8 15. e3 e4 16. dxe4 fxe4 {0-1 Puls,G-Fiensch,G DDR-ch M611 corr 1978}) 10... f5 {[%emt 0:23:52]} 11. Nc3 {[%emt 0:02:50]} f4 {[%emt 0:00:38]} 12. Bd2 {[%emt 0:04:47]} Ned4 {[%emt 0:02:08]} 13. Nxd4 {[%emt 0:02:27]} Nxd4 {[%emt 0:00:08]} 14. Qd1 {[%emt 0:00:05]} O-O {[%emt 0:02:34]} 15. Bd5+ {[%emt 0:16:13]} Kh8 $1 {[%emt 0:00:08]} 16. e3 {[%emt 0:00:23]} fxe3 {[%emt 0:24:39]} 17. fxe3 {[%emt 0:00:05]} Be6 {[%emt 0:07:14]} (17... Qd6 $17 {[%cal Od6f6] Strongly threatening ...Qf6!} 18. Bg2 (18. exd4 cxd4 19. Be4 dxc3 $17) 18... Nc6) 18. Bxe6 $11 {[%emt 0:04:04]} Nxe6 {[%emt 0:00:15]} 19. Qe2 {[%emt 0:00:15]} b5 {[%emt 0:02:29][%cal Bb7b5,Bb5b4][%mdl 32]} 20. O-O-O $2 {[%emt 0:05:27]} (20. Rf1 $1 $15) 20... b4 $1 $19 {[%emt 0:02:32]} 21. Ne4 {[%emt 0:00:19] [#]} Qd5 $1 {[%emt 0:00:35]} 22. b3 $2 {[%emt 0:07:24]} (22. Kb1 {is the only way for White.}) 22... a5 {[%emt 0:00:11][%cal Ba7a5,Ba5a4][%mdl 32]} 23. Kb2 {[%emt 0:06:44]} a4 {[%emt 0:00:59] aiming for ...axb3.} 24. Ra1 {[%emt 0:03:44]} Rfb8 {[%emt 0:03:51]} 25. Rhc1 {[%emt 0:01:16]} axb3 {[%emt 0:01:18]} 26. axb3 {[%emt 0:00:11]} Ra3 {[%emt 0:00:08][%csl Ga3][%cal Rd5b3]} 27. Rc4 {[%emt 0:01:25]} (27. Rxa3 {was necessary.} Nd4 28. exd4 bxa3+ 29. Ka1 Qxb3 30. Bc3 (30. dxc5 $2 Qb2#) 30... cxd4 31. Qd1 Qxd1 32. Rxd1 dxc3 33. Nxc3) 27... Rxa1 {[%emt 0:00:21]} 28. Kxa1 {[%emt 0:00:10]} Qa8+ {[%emt 0:00:04]} 29. Kb1 {[%emt 0:00:58]} Qa3 {[%emt 0:00:07]} 30. Bc1 {[%emt 0:02:26]} Qxb3+ {[%emt 0:00:06]} 31. Bb2 {[%emt 0:00:02]} Rd8 {[%emt 0:01:14]} ({Inferior is} 31... Ra8 32. Nd2 Qa4 33. Kc1) 32. Nf2 {[%emt 0:01:24] [#]} Nc7 $2 {[%emt 0:03:39]} (32... Ra8 $1 $19 {...Qa2+ would be deadly.} 33. h4 Nf8) 33. Qc2 $11 {[%emt 0:01:16]} Qxc2+ {[%emt 0:00:06]} 34. Kxc2 {[%emt 0:00:23]} Rf8 {[%emt 0:12:19]} 35. Ng4 {[%emt 0:05:21]} Nd5 {[%emt 0:00:18][%cal Bc7d5,Bd5f6,Bf6g4,Bg4e3,Be3f1][%mdl 32] White must now prevent ...h5.} 36. Re4 {[%emt 0:01:47]} Nf6 {[%emt 0:01:53]} 37. Rxe5 {[%emt 0:03:14]} Bd6 {[%emt 0:00:13]} 38. Re6 {[%emt 0:00:39][%csl LRd6,LRf6]} Nxg4 {[%emt 0:00:13]} 39. Rxd6 {[%emt 0:00:05]} Nxe3+ {[%emt 0:00:06][%mdl 4096] Endgame KRB-KRN} ({Don't take} 39... Nxh2 40. Rd7 Rf2+ 41. Kb3 $14) 40. Kb3 {[%emt 0:01:25]} Nf1 {[%emt 0:05:07]} 41. Rd7 {[%emt 0:32:21]} Rg8 {[%emt 0:30:21]} (41... Nxh2 $2 42. Bxg7+ Kg8 43. Bxf8 Kxf8 44. Rxh7 $18) (41... Nd2+ $2 42. Kc2 Rg8 43. Kxd2 $18) 42. Kc4 {[%emt 0:01:03]} Nxh2 {[%emt 0:00:00]} 43. Kxc5 {[%emt 0:00:00][%cal Od3d4]} Nf1 {[%emt 0:00:00]} 44. Be5 {[%emt 0:00:00]} b3 {[%emt 0:00:00]} 45. Kb4 {[%emt 0:00:00][%mdl 1024] White has compensation.} Nd2 {[%emt 0:00:00]} 46. Rf7 {[%emt 0:00:00] Hoping for Kc3.} h6 {[%emt 0:00:00][%cal Og8b8]} 47. Kc3 {[%emt 0:00:00]} Re8 {[%emt 0:00:00] Threatens to win with ...b2.} 48. Bd4 {[%emt 0:04:53] White happily takes the draw.   Weighted Error Value: White=0.25 (precise) /Black=0.23 (precise)} (48. Bxg7+ $5 Kg8 49. Rd7 $16) 1/2-1/2